bitfinex/quotes_BTCUSD_20241101
["timestamp","ask_amount","ask_price","bid_price","bid_amount"]
[1730484848178,0.27088938,69402.0,69401.0,25.082122]
[1730484848317,0.27488938,69402.0,69401.0,25.082122]
[1730484848522,0.27188938,69402.0,69401.0,25.082122]
[1730484848719,0.27488938,69402.0,69401.0,25.082122]
[1730484848924,0.28810948,69402.0,69401.0,25.082122]
[1730484849467,0.29868516,69402.0,69401.0,25.082122]
[1730484849891,0.28810948,69402.0,69401.0,25.082122]
[1730484850323,0.28810948,69402.0,69401.0,25.083122]
[1730484850536,0.14402148,69402.0,69401.0,25.083122]
[1730484850979,0.28810948,69402.0,69401.0,25.083122]
[1730484851856,0.14402148,69402.0,69401.0,25.083122]
[1730484852930,0.28810948,69402.0,69401.0,25.083122]
[1730484853133,0.27488938,69402.0,69401.0,25.083122]
[1730484854653,0.13080138,69402.0,69401.0,25.083122]
[1730484855004,0.27488938,69402.0,69401.0,25.083122]
[1730484855375,0.13080138,69402.0,69401.0,25.083122]
[1730484855587,0.27488938,69402.0,69401.0,25.083122]
[1730484855790,0.13080138,69402.0,69401.0,25.22157725]
[1730484856051,0.13080138,69402.0,69401.0,25.36566725]
[1730484856193,0.13080138,69402.0,69401.0,25.45796725]
[1730484858907,0.107,69402.0,69401.0,25.45796725]
[1730484859319,0.106,69402.0,69401.0,25.45796725]
[1730484861422,0.102,69402.0,69401.0,25.45796725]
[1730484861625,0.099,69402.0,69401.0,25.45796725]
[1730484861864,0.001644,69407.0,69406.0,0.144079]
[1730484862185,0.001644,69407.0,69406.0,0.58846714]
[1730484862571,0.21553582,69416.0,69406.0,0.44438814]
[1730484862771,0.21553582,69416.0,69401.0,25.001822]
[1730484862772,1.0,69421.0,69420.0,0.14405]
[1730484863006,1.0,69421.0,69420.0,0.32055]
[1730484863248,0.0001,69421.0,69420.0,0.32055]
[1730484863467,0.0001,69421.0,69420.0,0.45438289]
[1730484863674,0.21553582,69432.0,69420.0,0.45438289]
[1730484863675,0.21553582,69432.0,69431.0,0.0824]
[1730484863895,0.21553582,69432.0,69431.0,0.323127]
[1730484864113,0.288013,69442.0,69431.0,0.31755525]
[1730484864114,0.21553582,69438.0,69431.0,0.31755525]
[1730484864327,0.21553582,69438.0,69433.0,0.432068]
[1730484864520,0.21553582,69438.0,69433.0,0.288047]
[1730484864736,0.35954882,69438.0,69433.0,0.144022]
[1730484864943,0.144013,69438.0,69433.0,0.144022]
[1730484865147,0.001,69432.0,69431.0,0.75263525]
[1730484865597,0.144015,69437.0,69432.0,0.144024]
[1730484865819,0.144015,69437.0,69421.0,0.13383289]
[1730484865820,0.21553582,69437.0,69416.0,0.1773]
[1730484866023,0.144021,69434.0,69433.0,0.004]
[1730484867302,0.144021,69434.0,69426.0,0.144038]
[1730484867303,0.0225329,69467.0,69417.0,0.13845525]
[1730484867505,0.001,69432.0,69431.0,0.003]
[1730484867883,0.001,69432.0,69430.0,0.0985]
[1730484868094,0.288051,69432.0,69428.0,0.083]
[1730484868322,0.144032,69429.0,69428.0,0.083]
[1730484868886,0.288043,69435.0,69428.0,0.083]
[1730484869151,0.002,69432.0,69430.0,0.003]
[1730484869362,0.001,69432.0,69430.0,0.003]
[1730484869909,0.145025,69432.0,69430.0,0.003]
[1730484870113,0.001,69432.0,69431.0,0.1469073]
[1730484870311,0.144022,69434.0,69428.0,0.227033]
[1730484870528,0.50357182,69436.0,69428.0,0.22145525]
[1730484870738,0.001,69429.0,69428.0,0.22445525]
[1730484870975,0.001,69429.0,69428.0,0.36848925]
[1730484871177,0.14402,69435.0,69429.0,0.14403]
[1730484871395,0.001,69432.0,69429.0,0.14403]
[1730484871840,0.001,69434.0,69429.0,0.14403]
[1730484872072,0.144028,69431.0,69428.0,0.22145525]
[1730484872305,0.144024,69433.0,69429.0,0.003]
[1730484873153,0.001,69435.0,69429.0,0.003]
[1730484873357,0.14502,69435.0,69429.0,0.147031]
[1730484873819,0.50356282,69438.0,69430.0,0.144029]
[1730484873820,0.35955082,69438.0,69430.0,0.144029]
[1730484874037,0.144016,69437.0,69431.0,0.144027]
[1730484874246,0.144016,69437.0,69431.0,0.28248025]
[1730484874463,0.288015,69441.0,69432.0,0.144025]
[1730484874464,0.001,69434.0,69432.0,0.144025]
[1730484874966,0.001,69435.0,69432.0,0.144025]
[1730484875171,0.001,69435.0,69431.0,0.13845525]
[1730484875172,0.50356682,69437.0,69431.0,0.13845525]
[1730484875379,0.144025,69432.0,69431.0,0.003]
[1730484876860,0.144023,69434.0,69428.0,0.227033]
[1730484877108,0.001,69435.0,69429.0,0.144032]
[1730484877109,0.145019,69435.0,69429.0,0.144032]
[1730484877316,0.144022,69434.0,69432.0,0.003]
[1730484877695,0.001,69432.0,69428.0,0.227033]
[1730484877896,0.001,69432.0,69431.0,0.144027]
[1730484878172,0.001,69434.0,69431.0,0.13845525]
[1730484878387,0.001,69434.0,69433.0,0.239323]
[1730484878586,0.002644,69435.0,69434.0,0.144021]
[1730484878799,0.001644,69435.0,69434.0,0.28247625]
[1730484879947,0.001644,69435.0,69433.0,0.263799]
[1730484880162,0.144017,69437.0,69433.0,0.2062]
[1730484880364,0.144018,69436.0,69433.0,0.2062]
[1730484880478,0.145021,69434.0,69433.0,0.04]
[1730484880682,0.145021,69434.0,69433.0,0.01]
[1730484880885,0.144021,69434.0,69428.0,0.144033]
[1730484881092,0.144024,69433.0,69428.0,0.28248825]
[1730484881308,0.288035,69436.0,69433.0,0.01]
[1730484881309,0.432064,69434.0,69433.0,0.01]
[1730484881506,0.432064,69434.0,69433.0,0.51]
[1730484881712,0.432064,69434.0,69433.0,0.5]
[1730484881918,0.433064,69434.0,69433.0,0.5]
[1730484882129,0.434064,69434.0,69433.0,0.5]
[1730484882413,0.56689689,69434.0,69433.0,0.5]
[1730484882643,0.56789689,69434.0,69433.0,0.5]
[1730484882854,0.64659689,69434.0,69433.0,0.5]
[1730484883044,0.90805214,69434.0,69433.0,0.5]
[1730484883261,0.92021555,69434.0,69433.0,0.5]
[1730484883672,0.92121555,69434.0,69433.0,0.508]
[1730484883867,0.92121555,69434.0,69433.0,0.008]
[1730484884166,0.144052,69420.0,69410.0,0.288139]
[1730484884380,0.47498814,69434.0,69410.0,0.288139]
[1730484884381,0.144053,69419.0,69411.0,0.28252225]
[1730484885203,0.43215,69421.0,69412.0,0.144065]
[1730484885417,0.002,69420.0,69411.0,0.13845525]
[1730484885568,0.002,69420.0,69419.0,0.144052]
[1730484885773,0.002,69420.0,69417.0,0.144056]
[1730484885973,0.001,69419.0,69418.0,0.28250925]
[1730484886197,0.001,69420.0,69418.0,0.28250925]
[1730484886702,0.144029,69431.0,69423.0,0.144043]
[1730484886882,0.288035,69436.0,69418.0,0.13845525]
[1730484886883,0.21553582,69426.0,69420.0,0.432149]
[1730484887084,0.288035,69436.0,69420.0,0.13845525]
[1730484887085,0.144036,69427.0,69420.0,0.13845525]
[1730484887920,0.144036,69427.0,69423.0,0.001]
[1730484888323,0.145036,69427.0,69420.0,0.28250425]
[1730484888839,0.145036,69427.0,69420.0,0.28650425]
[1730484889049,0.144036,69427.0,69420.0,0.28650425]
[1730484889256,0.144034,69428.0,69420.0,0.28650425]
[1730484889408,0.144034,69428.0,69421.0,0.144048]
[1730484889904,0.144027,69431.0,69424.0,0.144042]
[1730484890064,0.144023,69434.0,69426.0,0.144036]
[1730484890253,0.144023,69434.0,69423.0,0.288088]
[1730484890464,0.144023,69434.0,69425.0,0.28808]
[1730484890666,0.21553582,69445.0,69427.0,0.1669]
[1730484890905,0.001644,69432.0,69431.0,0.144027]
[1730484891120,0.001644,69432.0,69431.0,0.28248225]
[1730484892478,0.002644,69432.0,69431.0,0.28448225]
[1730484893756,0.001644,69432.0,69431.0,0.28248225]
[1730484893948,0.003644,69432.0,69431.0,0.30048225]
[1730484894710,0.002644,69432.0,69431.0,0.28748225]
[1730484894843,0.003644,69432.0,69431.0,0.30048225]
[1730484895273,0.001644,69432.0,69431.0,0.28248225]
[1730484895683,0.003644,69432.0,69431.0,0.30048225]
[1730484896355,0.003644,69432.0,69431.0,0.018]
[1730484896738,0.003644,69432.0,69431.0,0.013]
[1730484896948,0.001644,69432.0,69429.0,0.144031]
[1730484897144,0.002644,69432.0,69431.0,0.002]
[1730484897549,0.002644,69432.0,69431.0,0.157027]
[1730484897735,0.002644,69432.0,69431.0,0.159027]
[1730484897921,0.002644,69432.0,69431.0,0.146027]
[1730484898102,0.003644,69432.0,69431.0,0.144027]
[1730484898307,0.003644,69432.0,69431.0,0.146027]
[1730484898470,0.004644,69432.0,69431.0,0.146027]
[1730484898677,0.002644,69432.0,69431.0,0.144027]
[1730484898878,0.003644,69432.0,69431.0,0.157027]
[1730484899914,0.004644,69432.0,69431.0,0.159027]
[1730484900125,0.003644,69432.0,69431.0,0.146027]
[1730484900334,0.002644,69432.0,69428.0,0.5]
[1730484900545,0.004644,69432.0,69431.0,0.015]
[1730484901052,0.147669,69432.0,69431.0,0.002]
[1730484901274,0.147669,69432.0,69431.0,0.013]
[1730484901275,0.148669,69432.0,69431.0,0.013]
[1730484901477,0.146669,69432.0,69431.0,0.011]
[1730484901736,0.001644,69432.0,69431.0,0.002]
[1730484901970,0.434723,69432.0,69431.0,0.002]
[1730484902115,0.534723,69432.0,69431.0,0.007]
[1730484902865,0.54794493,69432.0,69431.0,0.007]
[1730484903225,0.54694493,69432.0,69431.0,0.005]
[1730484903516,0.54694493,69432.0,69431.0,0.007]
[1730484903725,0.40291993,69432.0,69428.0,0.5]
[1730484903925,0.144032,69429.0,69428.0,0.5]
[1730484904570,0.15725422,69429.0,69428.0,0.5]
[1730484905066,0.15725422,69429.0,69428.0,0.501]
[1730484905269,0.39708711,69429.0,69428.0,0.5]
[1730484905503,0.84544868,69429.0,69428.0,0.5]
[1730484905709,0.73244236,69429.0,69428.0,0.5]
[1730484906751,0.73944236,69429.0,69428.0,0.501]
[1730484907550,0.73944236,69429.0,69428.0,0.001]
[1730484907778,0.72622014,69429.0,69428.0,0.001]
[1730484908008,0.73944125,69429.0,69428.0,0.001]
[1730484908451,0.27025311,69429.0,69428.0,0.001]
[1730484910506,0.404086,69429.0,69428.0,0.001]
[1730484911663,0.27025311,69429.0,69428.0,0.001]
[1730484911879,0.257032,69429.0,69428.0,0.001]
[1730484913204,0.39086489,69429.0,69428.0,0.001]
[1730484913403,0.40408086,69429.0,69428.0,0.001]
[1730484914045,0.144048,69421.0,69420.0,0.000822]
[1730484915599,0.288089,69423.0,69420.0,0.000822]
[1730484915810,0.144048,69421.0,69420.0,0.000822]
[1730484916469,0.144048,69421.0,69420.0,0.005822]
[1730484916882,0.144048,69421.0,69420.0,0.009822]
[1730484917061,0.144048,69421.0,69420.0,0.005822]
[1730484917455,0.145048,69421.0,69420.0,0.009822]
[1730484917653,0.145048,69421.0,69420.0,0.004822]
[1730484917888,0.144048,69421.0,69420.0,0.005822]
[1730484918290,0.1,69433.0,69420.0,0.005822]
[1730484918496,0.14404,69426.0,69420.0,0.005822]
[1730484918702,0.288073,69427.0,69420.0,0.005822]
[1730484918844,0.144048,69422.0,69420.0,0.005822]
[1730484919046,0.144048,69422.0,69420.0,0.008822]
[1730484919277,0.144048,69422.0,69420.0,0.005822]
[1730484919513,0.144048,69421.0,69420.0,0.005822]
[1730484919842,0.144048,69421.0,69420.0,0.003822]
[1730484920012,0.144048,69421.0,69420.0,0.000822]
[1730484920216,0.144048,69421.0,69420.0,0.003822]
[1730484920679,0.144048,69421.0,69420.0,0.000822]
[1730484920821,0.145048,69421.0,69420.0,0.008822]
[1730484922156,0.144048,69421.0,69420.0,0.000822]
[1730484922361,0.144048,69421.0,69420.0,0.002822]
[1730484922721,0.144048,69421.0,69420.0,0.000822]
[1730484923146,0.144048,69421.0,69420.0,0.002822]
[1730484923371,0.145048,69421.0,69420.0,0.000822]
[1730484923779,0.145048,69421.0,69420.0,0.001822]
[1730484925320,0.61226351,69421.0,69420.0,0.001822]
[1730484925478,0.68323395,69421.0,69420.0,0.001822]
[1730484925889,0.7387431,69421.0,69420.0,0.001822]
[1730484926294,0.69645563,69421.0,69420.0,0.001822]
[1730484926504,0.73773479,69421.0,69420.0,0.000822]
[1730484926829,0.69545563,69421.0,69420.0,0.000822]
[1730484927228,0.69545563,69421.0,69411.0,0.000822]
[1730484927229,0.47949989,69412.0,69411.0,0.000822]
[1730484927440,0.63117682,69412.0,69411.0,0.000822]
[1730484928360,0.15728868,69412.0,69411.0,0.000822]
[1730484928584,0.288116,69417.0,69411.0,0.000822]
[1730484928808,0.2921,69421.0,69420.0,0.001]
[1730484928809,0.446148,69421.0,69420.0,0.001]
[1730484929468,0.44537817,69421.0,69420.0,0.000821]
[1730484929648,0.45937891,69421.0,69420.0,0.000821]
[1730484929857,0.79474762,69421.0,69420.0,0.000821]
[1730484930058,0.5792118,69421.0,69420.0,0.000821]
[1730484930261,0.5802118,69421.0,69420.0,0.003821]
[1730484930671,0.44537891,69421.0,69420.0,0.000821]
[1730484931647,0.44537891,69421.0,69420.0,0.001821]
[1730484931849,0.01323091,69421.0,69420.0,0.001821]
[1730484932075,0.001644,69437.0,69420.0,0.002821]
[1730484932313,0.144039,69426.0,69420.0,0.000821]
[1730484932561,0.002,69421.0,69420.0,0.000821]
[1730484933113,0.144036,69427.0,69420.0,0.000821]
[1730484933306,0.144036,69427.0,69420.0,0.001821]
[1730484933667,0.288064,69429.0,69420.0,0.001821]
[1730484933880,0.001,69421.0,69420.0,0.145871]
[1730484934257,0.001,69421.0,69420.0,0.28432625]
[1730484934682,0.001,69421.0,69420.0,0.31332625]
[1730484934887,0.002,69421.0,69420.0,0.40032625]
[1730484935251,0.001,69421.0,69420.0,0.40032625]
[1730484935480,0.001,69421.0,69420.0,0.40332625]
[1730484935687,0.001,69427.0,69420.0,0.25027625]
[1730484935932,0.001,69427.0,69426.0,0.314938]
[1730484936147,0.001,69427.0,69426.0,0.58722614]
[1730484936362,0.001,69427.0,69426.0,0.45339325]
[1730484937013,0.001644,69432.0,69431.0,0.144027]
[1730484937213,0.001644,69432.0,69431.0,0.28248225]
[1730484939292,0.001644,69432.0,69431.0,0.36248225]
[1730484939652,0.002644,69432.0,69431.0,0.36548225]
[1730484939810,0.003644,69432.0,69431.0,0.37848225]
[1730484940414,0.002644,69432.0,69431.0,0.37548225]
[1730484940659,0.002644,69432.0,69431.0,0.46998225]
[1730484940864,0.002644,69432.0,69431.0,0.47298225]
[1730484940865,0.003644,69432.0,69431.0,0.47298225]
[1730484941077,0.002644,69432.0,69431.0,0.46998225]
[1730484941282,0.001644,69432.0,69431.0,0.45698225]
[1730484941491,0.001644,69432.0,69431.0,0.46998225]
[1730484941639,0.002644,69432.0,69431.0,0.46998225]
[1730484942066,0.001644,69432.0,69431.0,0.45698225]
[1730484942267,0.001644,69432.0,69431.0,0.46998225]
[1730484942472,0.001644,69432.0,69431.0,0.47298225]
[1730484942473,0.003644,69432.0,69431.0,0.47298225]
[1730484942711,0.002644,69432.0,69431.0,0.46998225]
[1730484943031,0.002644,69432.0,69431.0,0.95998225]
[1730484943902,0.001644,69432.0,69431.0,0.95698225]
[1730484944346,0.001644,69432.0,69431.0,0.95998225]
[1730484944347,0.002644,69432.0,69431.0,0.95998225]
[1730484944561,0.003644,69432.0,69431.0,0.97298225]
[1730484945173,0.002644,69432.0,69431.0,0.95998225]
[1730484945347,0.002644,69432.0,69431.0,0.97298225]
[1730484945559,0.002644,69432.0,69431.0,0.96998225]
[1730484945731,0.002644,69432.0,69431.0,0.97298225]
[1730484945732,0.003644,69432.0,69431.0,0.97298225]
[1730484946238,0.001644,69432.0,69431.0,0.95698225]
[1730484946448,0.002644,69432.0,69431.0,0.95998225]
[1730484946830,0.001644,69432.0,69431.0,0.95698225]
[1730484947034,0.002644,69432.0,69431.0,0.95998225]
[1730484947369,0.002644,69432.0,69431.0,0.95698225]
[1730484947544,0.002644,69432.0,69431.0,0.96998225]
[1730484947705,0.003644,69432.0,69431.0,0.96998225]
[1730484948229,0.002644,69432.0,69431.0,0.95698225]
[1730484948430,0.003644,69432.0,69431.0,0.96998225]
[1730484948628,0.003644,69432.0,69431.0,1.07298225]
[1730484948629,0.004644,69432.0,69431.0,1.07298225]
[1730484948831,0.001644,69437.0,69436.0,0.414717]
[1730484949008,0.001644,69447.0,69446.0,0.314696]
[1730484949215,0.001644,69447.0,69446.0,0.45315125]
[1730484949826,0.001644,69447.0,69446.0,0.70998414]
[1730484950030,0.21553582,69458.0,69457.0,0.143973]
[1730484950233,0.21553582,69466.0,69460.0,0.143967]
[1730484950548,0.21553582,69466.0,69460.0,0.28242225]
[1730484950940,0.1,69469.0,69460.0,0.28242225]
[1730484951359,0.1,69469.0,69460.0,0.46142225]
[1730484951811,0.002644,69461.0,69460.0,0.47542225]
[1730484952058,0.002644,69461.0,69460.0,0.49842225]
[1730484952714,0.002644,69461.0,69460.0,0.50254706]
[1730484952879,0.003644,69461.0,69460.0,0.48554706]
[1730484954645,0.003644,69461.0,69460.0,0.48142225]
[1730484957918,0.002644,69461.0,69460.0,0.46742225]
[1730484958196,0.002644,69461.0,69460.0,0.49842225]
[1730484958413,0.002644,69461.0,69460.0,0.59842225]
[1730484958622,0.002644,69461.0,69460.0,0.58942225]
[1730484958826,0.002644,69461.0,69460.0,0.58442225]
[1730484959021,0.003644,69461.0,69460.0,0.59842225]
[1730484959245,0.004644,69461.0,69460.0,0.60342225]
[1730484959512,0.004644,69461.0,69460.0,0.58042225]
[1730484960667,0.004644,69461.0,69460.0,0.63799325]
[1730484961675,0.004644,69461.0,69460.0,0.35899325]
[1730484961803,0.004644,69461.0,69460.0,0.15745525]
[1730484962628,0.148609,69461.0,69460.0,0.019]
[1730484962845,0.004644,69461.0,69460.0,0.38242225]
[1730484963204,0.002644,69461.0,69460.0,0.37742225]
[1730484963411,0.003644,69461.0,69460.0,0.38042225]
[1730484963989,0.003644,69461.0,69460.0,0.46642225]
[1730484963990,0.002644,69461.0,69460.0,0.46642225]
[1730484964143,0.002644,69461.0,69460.0,0.47542225]
[1730484964786,0.001644,69461.0,69460.0,0.46342225]
[1730484965206,0.002644,69461.0,69460.0,0.49142225]
[1730484965432,0.002644,69461.0,69460.0,0.47742225]
[1730484965433,0.001644,69461.0,69460.0,0.47742225]
[1730484965640,0.001644,69461.0,69460.0,0.46342225]
[1730484965922,0.002644,69461.0,69460.0,0.47742225]
[1730484966147,0.001644,69461.0,69460.0,0.46342225]
[1730484966346,0.001632,69477.0,69476.0,0.143934]
[1730484966548,0.001632,69477.0,69476.0,0.49742214]
[1730484967006,0.001642,69482.0,69481.0,0.143924]
[1730484967237,0.001642,69482.0,69481.0,0.41908989]
[1730484967457,0.001642,69482.0,69481.0,0.41621214]
[1730484968623,0.001642,69482.0,69481.0,0.51621214]
[1730484968829,0.001642,69482.0,69481.0,0.53021214]
[1730484969028,0.001642,69482.0,69481.0,0.54421214]
[1730484970387,0.001632,69502.0,69501.0,0.143882]
[1730484970594,0.001632,69502.0,69501.0,0.4190472]
[1730484970836,0.001632,69502.0,69501.0,0.41617014]
[1730484971408,0.001632,69502.0,69501.0,0.51617014]
[1730484971687,0.001632,69502.0,69501.0,0.53917014]
[1730484971891,0.001632,69502.0,69501.0,0.55017014]
[1730484972246,0.001632,69502.0,69501.0,0.56417014]
[1730484972468,0.001632,69502.0,69501.0,1.05017014]
[1730484972826,0.001632,69503.0,69502.0,0.16688]
[1730484973027,0.001632,69503.0,69502.0,0.28233525]
[1730484974392,0.001632,69503.0,69502.0,0.29633525]
[1730484974830,0.001632,69503.0,69502.0,0.28233525]
[1730484975239,0.001632,69503.0,69502.0,0.31033525]
[1730484975643,0.001632,69503.0,69502.0,0.30533525]
[1730484976081,0.001632,69503.0,69502.0,0.29133525]
[1730484976500,0.001632,69503.0,69502.0,0.27733525]
[1730484976704,0.001632,69503.0,69502.0,0.29133525]
[1730484977327,0.001632,69503.0,69502.0,0.27733525]
[1730484977531,0.001632,69503.0,69502.0,0.29133525]
[1730484978165,0.001632,69503.0,69502.0,0.27733525]
[1730484978422,0.001632,69503.0,69502.0,0.30533525]
[1730484978623,0.001632,69503.0,69502.0,0.29133525]
[1730484979042,0.001632,69503.0,69502.0,0.30533525]
[1730484979264,0.001632,69503.0,69502.0,0.29133525]
[1730484979699,0.001632,69503.0,69501.0,0.5]
[1730484980164,0.14551,69503.0,69502.0,0.014]
[1730484980833,0.001632,69503.0,69501.0,0.5]
[1730484981069,0.001632,69503.0,69501.0,0.643881]
[1730484981307,0.001632,69503.0,69502.0,0.28521251]
[1730484981537,0.001632,69503.0,69502.0,0.28433525]
[1730484983003,0.001632,69503.0,69502.0,0.28233525]
[1730484983454,0.001632,69503.0,69501.0,0.514]
[1730484983656,0.001632,69503.0,69502.0,0.014]
[1730484984520,0.001632,69503.0,69502.0,0.028]
[1730484984784,0.001632,69503.0,69501.0,0.5]
[1730484984785,0.1,69502.0,69501.0,0.5]
[1730484984984,0.3330032,69502.0,69501.0,0.5]
[1730484985191,0.31978,69502.0,69501.0,0.5]
[1730484987170,0.31978,69502.0,69501.0,0.50082]
[1730484987612,0.31978,69502.0,69501.0,0.50282]
[1730484988035,0.31978,69502.0,69501.0,0.50682]
[1730484988234,0.33301671,69502.0,69501.0,0.50482]
[1730484988445,0.33301671,69502.0,69501.0,0.50082]
[1730484988711,0.32901671,69502.0,69501.0,0.50082]
[1730484989345,0.31578,69502.0,69501.0,0.50082]
[1730484990112,0.31078,69502.0,69501.0,0.50082]
[1730484991307,0.0769,69502.0,69501.0,0.50082]
[1730484991528,0.001,69502.0,69501.0,0.50082]
[1730484992163,0.14488,69502.0,69501.0,0.50082]
[1730484992790,0.001,69502.0,69501.0,0.50082]
[1730484993236,0.001,69502.0,69501.0,0.644702]
[1730484993440,0.001632,69503.0,69501.0,0.644702]
[1730484993889,0.001632,69503.0,69502.0,0.28233525]
[1730484994746,0.001632,69503.0,69502.0,0.35803525]
[1730484995412,0.001632,69503.0,69502.0,0.37203525]
[1730484996069,0.001632,69503.0,69502.0,0.35803525]
[1730484997595,0.001632,69503.0,69502.0,0.29633525]
[1730484997814,0.001632,69503.0,69502.0,0.28233525]
[1730484998024,0.001632,69503.0,69502.0,0.29633525]
[1730484998628,0.001632,69503.0,69502.0,0.28233525]
[1730484998916,0.001632,69503.0,69502.0,0.29633525]
[1730484999140,0.001632,69503.0,69502.0,0.31033525]
[1730484999303,0.001632,69503.0,69502.0,0.29633525]
[1730484999708,0.001632,69503.0,69502.0,0.31033525]
[1730485000292,0.001632,69503.0,69502.0,0.29633525]
[1730485000491,0.001632,69503.0,69502.0,0.31033525]
[1730485002545,0.001632,69503.0,69502.0,0.81033525]
[1730485004164,0.001632,69503.0,69502.0,0.90253525]
[1730485006316,0.001632,69503.0,69502.0,0.81033525]
[1730485009712,0.001632,69503.0,69502.0,0.81115525]
[1730485011533,0.001632,69503.0,69502.0,0.52882]
[1730485022128,0.14551,69503.0,69502.0,0.52882]
[1730485022317,0.23671,69503.0,69502.0,0.52882]
[1730485022533,0.31921,69503.0,69502.0,0.52882]
[1730485022898,0.31921,69503.0,69502.0,0.51482]
[1730485023257,0.31921,69503.0,69502.0,0.52882]
[1730485023458,0.31921,69503.0,69502.0,0.51482]
[1730485023723,0.31921,69503.0,69502.0,0.50082]
[1730485023891,0.31921,69503.0,69502.0,0.51482]
[1730485024112,0.001632,69503.0,69502.0,0.79715525]
[1730485024438,0.001632,69503.0,69502.0,0.78315525]
[1730485025647,0.001632,69503.0,69502.0,0.79715525]
[1730485026493,0.001632,69503.0,69502.0,0.81115525]
[1730485027265,0.001632,69503.0,69502.0,0.78315525]
[1730485027463,0.001632,69503.0,69502.0,0.79715525]
[1730485027670,0.001632,69503.0,69502.0,0.81115525]
[1730485027846,0.001642,69515.0,69513.0,0.143857]
[1730485028049,0.001642,69515.0,69511.0,0.311185]
[1730485028050,0.001642,69515.0,69514.0,0.143855]
[1730485028256,0.001642,69515.0,69512.0,0.287719]
[1730485028257,0.001642,69515.0,69512.0,0.431577]
[1730485028608,0.001642,69515.0,69514.0,0.143855]
[1730485028926,0.001642,69515.0,69514.0,0.28518712]
[1730485029168,0.001642,69515.0,69514.0,0.28231025]
[1730485030158,0.001642,69515.0,69514.0,0.30931025]
[1730485030565,0.001642,69515.0,69514.0,0.29531025]
[1730485030749,0.001642,69515.0,69514.0,0.16445525]
[1730485031082,0.001642,69515.0,69514.0,0.15145525]
[1730485031262,0.001642,69515.0,69514.0,0.16245525]
[1730485031474,0.001642,69515.0,69514.0,0.30631025]
[1730485031687,0.001642,69515.0,69514.0,0.29531025]
[1730485032119,0.001642,69515.0,69514.0,0.15145525]
[1730485032698,0.001642,69515.0,69514.0,0.28231025]
[1730485032970,0.001642,69515.0,69514.0,0.29631025]
[1730485033175,0.001642,69515.0,69514.0,0.30431025]
[1730485033351,0.001642,69515.0,69514.0,0.14645525]
[1730485033753,0.001642,69515.0,69514.0,0.15945525]
[1730485033904,0.001642,69515.0,69514.0,0.14645525]
[1730485034355,0.001642,69515.0,69514.0,0.15645525]
[1730485035181,0.001642,69515.0,69514.0,0.30031025]
[1730485035991,0.001642,69515.0,69514.0,0.15645525]
[1730485036408,0.001642,69515.0,69514.0,0.30318701]
[1730485036622,0.001642,69515.0,69514.0,0.30031025]
[1730485037052,0.001642,69515.0,69514.0,0.39491025]
[1730485037480,0.001642,69515.0,69514.0,0.60775294]
[1730485037886,0.001642,69515.0,69514.0,0.59975294]
[1730485039214,0.001642,69515.0,69514.0,0.61375294]
[1730485039438,0.001642,69515.0,69514.0,0.60375294]
[1730485039701,0.001642,69515.0,69514.0,0.61775294]
[1730485039898,0.001642,69515.0,69514.0,0.60375294]
[1730485040127,0.001642,69515.0,69514.0,0.28231025]
[1730485040280,0.001642,69515.0,69514.0,0.29631025]
[1730485040485,0.001642,69515.0,69514.0,0.31031025]
[1730485041086,0.001642,69515.0,69514.0,0.41595294]
[1730485041456,0.001642,69515.0,69514.0,0.28231025]
[1730485042431,0.001642,69515.0,69514.0,0.29631025]
[1730485042842,0.001642,69515.0,69514.0,0.31031025]
[1730485044938,0.001642,69515.0,69514.0,0.44395294]
[1730485045585,0.001642,69515.0,69514.0,0.53775294]
[1730485046026,0.001642,69515.0,69514.0,0.40411025]
[1730485046228,0.001642,69515.0,69514.0,0.37611025]
[1730485046587,0.001642,69515.0,69514.0,0.40411025]
[1730485046791,0.001642,69515.0,69514.0,0.39011025]
[1730485047008,0.001642,69515.0,69514.0,0.37611025]
[1730485047200,0.001642,69515.0,69514.0,0.39011025]
[1730485047543,0.001642,69515.0,69514.0,0.40411025]
[1730485048193,0.001642,69515.0,69514.0,0.31031025]
[1730485051475,0.001642,69515.0,69514.0,0.28231025]
[1730485051910,0.001642,69515.0,69514.0,0.31031025]
[1730485060072,0.001642,69515.0,69514.0,0.81031025]
[1730485062346,0.001642,69515.0,69514.0,0.79631025]
[1730485062742,0.001642,69515.0,69514.0,0.81031025]
[1730485062941,0.001642,69515.0,69514.0,0.8143398]
[1730485063144,0.001642,69515.0,69514.0,0.8003398]
[1730485063576,0.001642,69515.0,69514.0,0.9143398]
[1730485063786,0.00163,69527.0,69526.0,0.35857369]
[1730485063990,0.00163,69527.0,69526.0,0.59412894]
[1730485065044,0.00163,69527.0,69526.0,0.60812894]
[1730485065417,0.00163,69527.0,69526.0,0.62212894]
[1730485066205,0.00163,69527.0,69526.0,1.12212894]
[1730485066408,0.00163,69527.0,69526.0,0.98848625]
[1730485066824,0.00163,69527.0,69526.0,1.12212894]
[1730485067684,0.00163,69527.0,69526.0,1.10812894]
[1730485067921,0.00163,69527.0,69526.0,1.20812894]
[1730485068129,0.00163,69527.0,69526.0,1.22212894]
[1730485068340,0.00163,69527.0,69526.0,1.19822061]
[1730485068768,0.00163,69527.0,69526.0,1.22622061]
[1730485069159,0.00163,69527.0,69526.0,1.21222061]
[1730485069584,0.00163,69527.0,69526.0,1.22622061]
[1730485070001,0.00163,69527.0,69526.0,1.21222061]
[1730485070419,0.00163,69527.0,69526.0,1.07857792]
[1730485070833,0.00163,69527.0,69526.0,1.09257792]
[1730485071036,0.00163,69527.0,69526.0,1.07857792]
[1730485071240,0.00163,69527.0,69526.0,0.98147792]
[1730485071450,0.00163,69527.0,69526.0,0.99547792]